lending/lending_fUSD_20251116
["ID","MTS","AMOUNT","RATE_DAILY","PERIOD"]
[394099542,1763279445010,-151.0,0.00017997,2]
[394099543,1763279445020,-151.0,0.00017997,2]
[394099544,1763279445030,-151.0,0.00017997,2]
[394099545,1763279445043,-151.0,0.00017997,2]
[394099546,1763279445054,-151.0,0.00017997,2]
[394099547,1763279445065,-151.0,0.00017997,2]
[394099548,1763279445075,-151.0,0.00017997,2]
[394099549,1763279445085,-151.0,0.00017997,2]
[394099550,1763279445095,-172.659662,0.00017997,2]
[394099551,1763279445105,-151.0,0.00017997,2]
[394099552,1763279445115,-151.0,0.00017997,2]
[394099553,1763279445125,-156.693005,0.00017997,2]
[394099554,1763279445135,-151.0,0.00017997,2]
[394099555,1763279445148,-151.0,0.00017997,2]
[394099556,1763279445157,-151.0,0.00017997,2]
[394099557,1763279445167,-274.475119,0.00017997,2]
[394099558,1763279445176,-151.0,0.00017997,2]
[394099559,1763279445187,-151.0,0.00017997,2]
[394099560,1763279445197,-153.708628,0.00017997,2]
[394099561,1763279445206,-151.0,0.00017997,2]
[394099562,1763279445216,-166.249349,0.00017997,2]
[394099563,1763279445226,-151.0,0.00017997,2]
[394099564,1763279445236,-151.0,0.00017997,2]
[394099565,1763279445249,-151.0,0.00017997,2]
[394099566,1763279445258,-151.0,0.00017997,2]
[394099567,1763279445267,-151.0,0.00017997,2]
[394099568,1763279445277,-151.0,0.00017997,2]
[394099569,1763279445286,-151.0,0.00017997,2]
[394099570,1763279445295,-151.0,0.00017997,2]
[394099571,1763279445304,-151.0,0.00017997,2]
[394099572,1763279445313,-153.633799,0.00017997,2]
[394099573,1763279445322,-151.0,0.00017997,2]
[394099574,1763279445332,-151.0,0.00017997,2]
[394099575,1763279445342,-151.0,0.00017997,2]
[394099576,1763279445351,-151.0,0.00017997,2]
[394099577,1763279445361,-151.0,0.00017997,2]
[394099578,1763279445371,-151.0,0.00017997,2]
[394099579,1763279445380,-151.0,0.00017997,2]
[394099580,1763279445389,-151.0,0.00017997,2]
[394099581,1763279445399,-151.0,0.00017997,2]
[394099582,1763279445409,-151.0,0.00017997,2]
[394099583,1763279445418,-151.0,0.00017997,2]
[394099584,1763279445428,-151.0,0.00017997,2]
[394099585,1763279445439,-151.0,0.00017997,2]
[394099586,1763279445451,-151.0,0.00017997,2]
[394099587,1763279445460,-184.808736,0.00017997,2]
[394099588,1763279445470,-217.445781,0.00017997,2]
[394099589,1763279445480,-151.0,0.00017997,2]
[394099590,1763279445490,-261.369398,0.00017997,2]
[394099591,1763279445499,-225.770558,0.00017997,2]
[394099592,1763279445509,-151.0,0.00017997,2]
[394099593,1763279445518,-151.0,0.00017997,2]
[394099594,1763279445528,-153.725871,0.00017997,2]
[394099595,1763279445538,-159.659107,0.00017997,2]
[394099596,1763279445547,-151.0,0.00017997,2]
[394099597,1763279445556,-151.0,0.00017997,2]
[394099598,1763279445567,-151.0,0.00017997,2]
[394099599,1763279445576,-151.0,0.00017997,2]
[394099600,1763279445586,-151.0,0.00017997,2]
[394099601,1763279445596,-151.0,0.00017997,2]
[394099602,1763279445606,-151.0,0.00017997,2]
[394099603,1763279445616,-151.0,0.00017997,2]
[394099604,1763279445625,-151.0,0.00017997,2]
[394099605,1763279445635,-151.0,0.00017997,2]
[394099606,1763279445645,-151.0,0.00017997,2]
[394099607,1763279445655,-181.103134,0.00017997,2]
[394099608,1763279445890,-151.0,0.00017997,2]
[394099609,1763279445902,-151.0,0.00017997,2]
[394099610,1763279445912,-166.116633,0.00017997,2]
[394099612,1763279445923,-151.0,0.00017997,2]
[394099614,1763279445932,-163.405208,0.00017997,2]
[394099616,1763279445943,-151.0,0.00017997,2]
[394099617,1763279445952,-151.0,0.00017997,2]
[394099618,1763279445962,-151.0,0.00017997,2]
[394099619,1763279445971,-160.531221,0.00017997,2]
[394099620,1763279445981,-217.611013,0.00017997,2]
[394099621,1763279445991,-217.611013,0.00017997,2]
[394099622,1763279446001,-217.611013,0.00017997,2]
[394099623,1763279446010,-217.611013,0.00017997,2]
[394099624,1763279446019,-217.611013,0.00017997,2]
[394099625,1763279446029,-217.611013,0.00017997,2]
[394099626,1763279446039,-151.0,0.00017997,2]
[394099627,1763279446048,-151.0,0.00017997,2]
[394099628,1763279446057,-151.0,0.00017997,2]
[394099629,1763279446067,-217.611013,0.00017997,2]
[394099630,1763279446076,-151.0,0.00017997,2]
[394099631,1763279446086,-151.0,0.00017997,2]
[394099632,1763279446095,-151.0,0.00017997,2]
[394099633,1763279446105,-217.611013,0.00017997,2]
[394099634,1763279446114,-151.0,0.00017997,2]
[394099635,1763279446123,-217.611013,0.00017997,2]
[394099636,1763279446133,-151.0,0.00017997,2]
[394099637,1763279446144,-217.611013,0.00017997,2]
[394099638,1763279446154,-217.611013,0.00017997,2]
[394099639,1763279446163,-217.611013,0.00017997,2]
[394099640,1763279446173,-166.199414,0.00017997,2]
[394099641,1763279446183,-1241.886627,0.00017997,2]
[394099642,1763279446194,-1241.886627,0.00017997,2]
[394099643,1763279446203,-1241.886627,0.00017997,2]
[394099644,1763279446213,-151.755537,0.00017997,2]
[394099645,1763279446223,-151.755537,0.00017997,2]
[394099646,1763279446232,-1241.886627,0.00017997,2]
[394099647,1763279446242,-151.755537,0.00017997,2]
[394099648,1763279446252,-1241.886627,0.00017997,2]
[394099649,1763279446261,-1241.886627,0.00017997,2]
[394099650,1763279446270,-151.755537,0.00017997,2]
[394099651,1763279446280,-151.755537,0.00017997,2]
[394099652,1763279446289,-151.755537,0.00017997,2]
[394099653,1763279446299,-1241.886627,0.00017997,2]
[394099654,1763279446312,-1241.886627,0.00017997,2]
[394099655,1763279446322,-1241.886627,0.00017997,2]
[394099656,1763279446332,-151.755537,0.00017997,2]
[394099657,1763279446341,-151.755537,0.00017997,2]
[394099658,1763279446351,-151.755537,0.00017997,2]
[394099659,1763279446361,-151.0,0.00017997,2]
[394099660,1763279446371,-151.0,0.00017997,2]
[394099661,1763279446380,-151.0,0.00017997,2]
[394099662,1763279446390,-1241.886627,0.00017997,2]
[394099663,1763279446400,-199.111985,0.00017997,2]
[394099664,1763279446410,-1241.886627,0.00017997,2]
[394099665,1763279446419,-151.755537,0.00017997,2]
[394099666,1763279446429,-1241.886627,0.00017997,2]
[394099667,1763279446439,-151.755537,0.00017997,2]
[394099668,1763279446450,-151.755537,0.00017997,2]
[394099669,1763279446459,-186.668261,0.00017997,2]
[394099670,1763279446469,-186.668261,0.00017997,2]
[394099671,1763279446479,-186.668261,0.00017997,2]
[394099672,1763279446489,-186.668261,0.00017997,2]
[394099673,1763279446498,-186.668261,0.00017997,2]
[394099674,1763279446508,-186.668261,0.00017997,2]
[394099675,1763279446517,-186.668261,0.00017997,2]
[394099676,1763279446527,-186.668261,0.00017997,2]
[394099677,1763279446536,-186.668261,0.00017997,2]
[394099678,1763279446547,-186.668261,0.00017997,2]
[394099679,1763279446557,-186.668261,0.00017997,2]
[394099680,1763279446567,-186.668261,0.00017997,2]
[394099681,1763279446576,-151.0,0.00017997,2]
[394099682,1763279446586,-151.0,0.00017997,2]
[394099683,1763279446596,-151.0,0.00017997,2]
[394099684,1763279446605,-152.896676,0.00017997,2]
[394099685,1763279446615,-151.0,0.00017997,2]
[394099686,1763279446624,-151.0,0.00017997,2]
[394099688,1763279446634,-151.0,0.00017997,2]
[394099690,1763279446643,-151.0,0.00017997,2]
[394099691,1763279446652,-151.0,0.00017997,2]
[394099692,1763279446661,-151.0,0.00017997,2]
[394099693,1763279446670,-151.0,0.00017997,2]
[394099694,1763279446680,-151.0,0.00017997,2]
[394099695,1763279446693,-151.0,0.00017997,2]
[394099696,1763279446703,-288.585584,0.00017997,2]
[394099697,1763279446713,-288.585584,0.00017997,2]
[394099698,1763279446723,-288.585584,0.00017997,2]
[394099699,1763279446732,-151.0,0.00017997,2]
[394099700,1763279446742,-288.585584,0.00017997,2]
[394099701,1763279446752,-288.585584,0.00017997,2]
[394099702,1763279446762,-288.585584,0.00017997,2]
[394099703,1763279446772,-151.0,0.00017997,2]
[394099704,1763279446781,-151.0,0.00017997,2]
[394099705,1763279446791,-151.0,0.00017997,2]
[394099707,1763279446802,-288.585584,0.00017997,2]
[394099709,1763279446811,-288.585584,0.00017997,2]
[394099711,1763279446821,-288.585584,0.00017997,2]
[394099712,1763279446831,-151.0,0.00017997,2]
[394099713,1763279446841,-151.0,0.00017997,2]
[394099714,1763279446850,-288.585584,0.00017997,2]
[394099715,1763279446860,-151.0,0.00017997,2]
[394099716,1763279446870,-288.585584,0.00017997,2]
[394099717,1763279446884,-288.585584,0.00017997,2]
[394099718,1763279446894,-174.497614,0.00017997,2]
[394099719,1763279446904,-151.0,0.00017997,2]
[394099720,1763279446914,-174.497614,0.00017997,2]
[394099721,1763279446924,-151.0,0.00017997,2]
[394099722,1763279446934,-257.761001,0.00017997,2]
[394099723,1763279446945,-174.497614,0.00017997,2]
[394099724,1763279446955,-151.0,0.00017997,2]
[394099725,1763279446965,-151.0,0.00017997,2]
[394099726,1763279446975,-151.0,0.00017997,2]
[394099727,1763279446985,-174.497614,0.00017997,2]
[394099728,1763279446996,-174.497614,0.00017997,2]
[394099729,1763279447006,-174.497614,0.00017997,2]
[394099730,1763279447016,-193.006912,0.00017997,2]
[394099731,1763279447026,-174.497614,0.00017997,2]
[394099732,1763279447036,-174.497614,0.00017997,2]
[394099733,1763279447047,-174.497614,0.00017997,2]
[394099734,1763279447057,-174.497614,0.00017997,2]
[394099735,1763279447067,-272.380758,0.00017997,2]
[394099736,1763279447081,-174.497614,0.00017997,2]
[394099737,1763279447091,-272.380758,0.00017997,2]
[394099738,1763279447100,-174.497614,0.00017997,2]
[394099739,1763279447110,-272.380758,0.00017997,2]
[394099740,1763279447120,-272.380758,0.00017997,2]
[394099741,1763279447130,-272.380758,0.00017997,2]
[394099742,1763279447141,-272.380758,0.00017997,2]
[394099743,1763279447152,-272.380758,0.00017997,2]
[394099744,1763279447161,-272.380758,0.00017997,2]
[394099745,1763279447171,-272.380758,0.00017997,2]
[394099746,1763279447180,-272.380758,0.00017997,2]
[394099747,1763279447190,-272.380758,0.00017997,2]
[394099748,1763279447200,-272.380758,0.00017997,2]
[394099749,1763279447210,-151.0,0.00017997,2]
[394099750,1763279447222,-151.0,0.00017997,2]
[394099751,1763279447232,-151.0,0.00017997,2]
[394099752,1763279447241,-151.0,0.00017997,2]
[394099753,1763279447251,-151.0,0.00017997,2]
[394099754,1763279447260,-151.0,0.00017997,2]
[394099755,1763279447270,-151.0,0.00017997,2]
[394099756,1763279447280,-151.0,0.00017997,2]
[394099757,1763279447290,-181.313631,0.00017997,2]
[394099758,1763279447299,-151.0,0.00017997,2]
[394099759,1763279447309,-151.0,0.00017997,2]
[394099760,1763279447318,-202.005094,0.00017997,2]
[394099761,1763279447328,-151.0,0.00017997,2]
[394099762,1763279447338,-154.892174,0.00017997,2]
[394099763,1763279447347,-151.0,0.00017997,2]
[394099764,1763279447356,-151.0,0.00017997,2]
[394099765,1763279447366,-154.892174,0.00017997,2]
[394099766,1763279447375,-154.892174,0.00017997,2]
[394099767,1763279447386,-151.0,0.00017997,2]
[394099768,1763279447395,-151.0,0.00017997,2]
[394099769,1763279447404,-154.892174,0.00017997,2]
[394099770,1763279447414,-151.0,0.00017997,2]
[394099771,1763279447423,-154.892174,0.00017997,2]
[394099772,1763279447433,-154.892174,0.00017997,2]
[394099773,1763279447443,-154.892174,0.00017997,2]
[394099774,1763279447452,-154.892174,0.00017997,2]
[394099775,1763279447462,-154.892174,0.00017997,2]
[394099776,1763279447471,-154.892174,0.00017997,2]
[394099777,1763279447480,-154.892174,0.00017997,2]
[394099778,1763279447490,-154.892174,0.00017997,2]
[394099779,1763279447499,-334.897074,0.00017997,2]
[394099780,1763279447508,-151.0,0.00017997,2]
[394099781,1763279447518,-334.897074,0.00017997,2]
[394099782,1763279447527,-151.0,0.00017997,2]
[394099783,1763279447537,-334.897074,0.00017997,2]
[394099784,1763279447546,-334.897074,0.00017997,2]
[394099785,1763279447556,-334.897074,0.00017997,2]
[394099786,1763279447566,-334.897074,0.00017997,2]
[394099787,1763279447575,-160.270929,0.00017997,2]
[394099788,1763279447585,-160.270929,0.00017997,2]
[394099789,1763279447594,-160.270929,0.00017997,2]
[394099790,1763279447604,-334.897074,0.00017997,2]
[394099791,1763279447613,-334.897074,0.00017997,2]
[394099792,1763279447622,-151.0,0.00017997,2]
[394099793,1763279447632,-151.0,0.00017997,2]
[394099794,1763279447642,-160.270929,0.00017997,2]
[394099795,1763279447651,-160.270929,0.00017997,2]
[394099796,1763279447661,-160.270929,0.00017997,2]
[394099797,1763279447671,-160.270929,0.00017997,2]
[394099798,1763279447681,-160.270929,0.00017997,2]
[394099799,1763279447691,-151.0,0.00017997,2]
[394099800,1763279447701,-151.0,0.00017997,2]
[394099801,1763279447710,-160.270929,0.00017997,2]
[394099802,1763279447719,-151.0,0.00017997,2]
[394099803,1763279447729,-151.0,0.00017997,2]
[394099804,1763279447738,-160.270929,0.00017997,2]
[394099805,1763279447748,-151.0,0.00017997,2]
[394099806,1763279447758,-160.270929,0.00017997,2]
[394099807,1763279447770,-151.0,0.00017997,2]
[394099808,1763279447779,-160.270929,0.00017997,2]
[394099809,1763279447789,-245.506241,0.00017997,2]
[394099810,1763279447799,-151.0,0.00017997,2]
[394099811,1763279447808,-245.506241,0.00017997,2]
[394099812,1763279447818,-298.320965,0.00017997,2]
[394099813,1763279447827,-151.0,0.00017997,2]
[394099814,1763279447837,-151.0,0.00017997,2]
[394099815,1763279447847,-151.0,0.00017997,2]
[394099816,1763279447857,-151.0,0.00017997,2]
[394099817,1763279447866,-245.506241,0.00017997,2]
[394099818,1763279447875,-150.0,0.00018,2]
[394099819,1763279447885,-5694.56318643,0.00018,2]
[394099820,1763279447894,-290825.4108733,0.00018,2]
[394099821,1763279447959,-641.03433919,0.00018,2]
[394099822,1763279447971,-2161.84006027,0.00018,2]
[394099823,1763279448287,-245.506241,0.00017997,2]
[394099824,1763279448297,-287.06785,0.00017997,2]
[394099825,1763279448306,-287.06785,0.00017997,2]
[394099826,1763279448316,-151.0,0.00017997,2]
[394099827,1763279448325,-250.395513,0.00017997,2]
[394099828,1763279448334,-166.93889898,0.00017997,2]
[394099829,1763279448347,-67.27769402,0.00017997,2]
[394099830,1763279448356,-151.0,0.00017997,2]
[394099831,1763279448366,-250.395513,0.00017997,2]
[394099832,1763279448376,-245.506241,0.00017997,2]
[394099833,1763279448386,-245.506241,0.00017997,2]
[394099834,1763279448395,-287.06785,0.00017997,2]
[394099835,1763279448404,-20.59502774,0.00017997,2]
[394099836,1763279448873,-149.61071426,0.00017997,2]
[394099837,1763279448883,-287.06785,0.00017997,2]
[394099838,1763279448892,-213.2194586,0.00017997,2]
[394099839,1763279448905,-37.1760544,0.00017997,2]
[394099840,1763279448914,-1487.83499261,0.00018,2]
[394099841,1763279448925,-1600.65697743,0.00018,2]
[394099842,1763279448937,-903.09493862,0.00018,2]
[394099843,1763279448949,-826.87559871,0.00018,2]
[394099844,1763279448960,-636.52741507,0.00018,2]
[394099845,1763279448971,-369.8257718,0.00018,2]
[394099846,1763279448986,-3764.59132265,0.00018,2]
[394099847,1763279449033,-250.395513,0.00017997,2]
[394099848,1763279449043,-111.24768899,0.00018,2]
[394099849,1763279449246,-151.0,0.00017997,2]
[394099850,1763279449256,-170.205742,0.00017997,2]
[394099851,1763279449265,-151.0,0.00017997,2]
[394099852,1763279449277,-287.06785,0.00017997,2]
[394099853,1763279449286,-245.506241,0.00017997,2]
[394099854,1763279449296,-181.32596135,0.00017997,2]
[394099855,1763279449315,-105.74188865,0.00017997,2]
[394099856,1763279449324,-245.506241,0.00017997,2]
[394099857,1763279449334,-170.205742,0.00017997,2]
[394099858,1763279449344,-250.395513,0.00017997,2]
[394099859,1763279449353,-170.205742,0.00017997,2]
[394099860,1763279449362,-34.45487335,0.00017997,2]
[394099861,1763279449535,-215.94063965,0.00017997,2]
[394099862,1763279449544,-287.06785,0.00017997,2]
[394099863,1763279449553,-287.06785,0.00017997,2]
[394099864,1763279449562,-3386.06155243,0.00018,2]
[394099865,1763279449574,-22012.46804593,0.00018,2]
[394099866,1763279767608,193.45,8.429e-05,2]
[394099890,1763280540982,150.0,0.00030134,120]
[394099904,1763280632091,-546.964,0.00015791,2]
[394099905,1763280632101,-195.0,0.00015932,2]
[394099906,1763280632111,-1200.0,0.00016013,2]
[394099908,1763280632120,-37110.15294391,0.00016014,2]
[394099909,1763280632148,-2373.69985609,0.00016014,2]
[394099910,1763280632157,-150.0,0.00016072,2]
[394099911,1763280632167,-193.29686919,0.00016073,2]
[394099912,1763280632176,-1324.16735364,0.00016073,2]
[394099913,1763280632187,-7413.19390163,0.00016073,2]
[394099914,1763280632202,-2708.27361817,0.00016073,2]
[394099915,1763280632212,-151.0,0.00016104,2]
[394099916,1763280632221,-151.0,0.00016104,2]
[394099917,1763280632231,-500.0,0.00016113,2]
[394099918,1763280632240,-500.0,0.00016113,2]
[394099919,1763280632249,-316.5078923,0.00016113,2]
[394099920,1763280632258,-512.0396834,0.00016173,2]
[394099921,1763280632267,-150.0,0.000162,2]
[394099922,1763280632277,-1000.0,0.00016471,2]
[394099923,1763280632291,-6402.87,0.0001649,2]
[394099924,1763280632304,-999.0,0.00016807,3]
[394099925,1763280632313,-193.45,0.00016859,2]
[394099926,1763280632323,-151.0,0.00016868,2]
[394099927,1763280632332,-151.0,0.00016869,2]
[394099928,1763280632341,-151.0,0.00016869,2]
[394099929,1763280632350,-151.0,0.0001687,2]
[394099930,1763280632359,-200.0,0.00016899,2]
[394099931,1763280632368,-1429.42,0.00016922,2]
[394099932,1763280632378,-3314.26,0.00016922,2]
[394099933,1763280632387,-1746.1,0.00016922,2]
[394099934,1763280632396,-6103.15,0.00016922,2]
[394099935,1763280632405,-950.26,0.00016922,2]
[394099936,1763280632414,-1169.66,0.00016922,2]
[394099937,1763280632424,-999.99,0.00016922,2]
[394099939,1763280632433,-8060.3,0.00016922,2]
[394099941,1763280632442,-3366.8,0.00016922,2]
[394099943,1763280632452,-7289.82,0.00016922,2]
[394099945,1763280632461,-1454.31,0.00016922,2]
[394099947,1763280632470,-150.99,0.00016922,2]
[394099949,1763280632480,-9999.99,0.00016922,2]
[394099951,1763280632490,-3788.37,0.00016922,2]
[394099953,1763280632499,-500.0,0.00017034,2]
[394099955,1763280632508,-151.0,0.00017034,2]
[394099957,1763280632517,-500.0,0.00017034,2]
[394099959,1763280632526,-500.0,0.00017034,2]
[394099961,1763280632535,-591.23609277,0.00017034,2]
[394099962,1763280632544,-151.0,0.00017034,2]
[394099963,1763280632553,-151.0,0.00017034,2]
[394099964,1763280632563,-151.0,0.00017034,2]
[394099965,1763280632572,-250.0,0.00017034,2]
[394099966,1763280632581,-151.0,0.00017034,2]
[394099967,1763280632591,-250.0,0.00017034,2]
[394099968,1763280632600,-250.0,0.00017034,2]
[394099969,1763280632609,-151.0,0.00017034,2]
[394099970,1763280632618,-250.0,0.00017034,2]
[394099971,1763280632810,-250.0,0.00017034,2]
[394099972,1763280632824,-151.0,0.00017034,2]
[394099973,1763280632833,-250.0,0.00017034,2]
[394099974,1763280632842,-250.0,0.00017034,2]
[394099975,1763280632852,-250.0,0.00017034,2]
[394099976,1763280632861,-322.6107,0.00017034,2]
[394099977,1763280632870,-151.0,0.00017034,2]
[394099978,1763280632879,-250.0,0.00017034,2]
[394099979,1763280632888,-250.0,0.00017034,2]
[394099980,1763280632898,-250.0,0.00017034,2]
[394099981,1763280632907,-151.0,0.00017034,2]
[394099982,1763280632916,-250.0,0.00017034,2]
[394099983,1763280632925,-250.0,0.00017034,2]
[394099984,1763280632935,-250.0,0.00017034,2]
[394099985,1763280632944,-151.0,0.00017034,2]
[394099986,1763280632954,-250.0,0.00017034,2]
[394099987,1763280632963,-250.0,0.00017034,2]
[394099988,1763280632972,-250.0,0.00017034,2]
[394099989,1763280632982,-151.0,0.00017034,2]
[394099990,1763280632991,-250.0,0.00017034,2]
[394099991,1763280633000,-250.0,0.00017034,2]
[394099992,1763280633009,-250.0,0.00017034,2]
[394099993,1763280633019,-151.0,0.00017034,2]
[394099994,1763280633028,-250.0,0.00017034,2]
[394099995,1763280633037,-250.0,0.00017034,2]
[394099996,1763280633047,-169.04537978,0.00017034,2]
[394099997,1763280633056,-151.0,0.00017034,2]
[394099998,1763280633066,-250.0,0.00017034,2]
[394099999,1763280633075,-250.0,0.00017034,2]
[394100000,1763280633084,-574.12855637,0.00017034,2]
[394100001,1763280633093,-314.97225511,0.00017034,2]
[394100002,1763280633102,-250.0,0.00017034,2]
[394100003,1763280633111,-250.0,0.00017034,2]
[394100004,1763280633120,-250.0,0.00017034,2]
[394100005,1763280633129,-250.0,0.00017034,2]
[394100006,1763280633138,-250.0,0.00017034,2]
[394100007,1763280633147,-250.0,0.00017034,2]
[394100008,1763280633155,-250.0,0.00017034,2]
[394100009,1763280633164,-250.0,0.00017034,2]
[394100010,1763280633173,-250.0,0.00017034,2]
[394100011,1763280633182,-250.0,0.00017034,2]
[394100012,1763280633192,-250.0,0.00017034,2]
[394100013,1763280633202,-250.0,0.00017034,2]
[394100014,1763280633211,-220.0,0.00017034,2]
[394100015,1763280633221,-250.0,0.00017034,2]
[394100016,1763280633230,-221.12663668,0.00017034,2]
[394100017,1763280633239,-250.0,0.00017034,2]
[394100018,1763280633248,-250.0,0.00017034,2]
[394100019,1763280633257,-277.35679052,0.00017034,2]
[394100020,1763280633266,-208.24,0.00017034,2]
[394100021,1763280633275,-150.0,0.000171,2]
[394100022,1763280633283,-208.24,0.00017308,2]
[394100023,1763280633292,-274.57,0.00017359,2]
[394100024,1763280633301,-326.0993686,0.0001737,2]
[394100025,1763280633310,-300.0,0.0001737,2]
[394100026,1763280633320,-300.0,0.0001737,2]
[394100027,1763280633329,-300.0,0.0001737,2]
[394100028,1763280633339,-300.0,0.0001737,2]
[394100029,1763280633348,-354.34,0.0001737,2]
[394100030,1763280633357,-301.22670242,0.0001737,2]
[394100031,1763280633366,-300.0,0.0001737,2]
[394100032,1763280633376,-195.0,0.0001737,2]
[394100033,1763280633386,-250.0,0.0001737,2]
[394100034,1763280633395,-320.56,0.00017421,2]
[394100035,1763280633404,-183.0,0.00017445,2]
[394100036,1763280633413,-166.66,0.00017452,2]
[394100037,1763280633422,-183.0,0.0001749,2]
[394100038,1763280633431,-211.96963833,0.00017569,2]
[394100039,1763280633441,-151.0,0.00017582,2]
[394100040,1763280633450,-595.37131296,0.00017582,2]
[394100041,1763280633460,-208.24,0.00017582,2]
[394100042,1763280633469,-1680.0,0.00017595,2]
[394100043,1763280633478,-183.0,0.0001766,2]
[394100044,1763280633488,-1000.0,0.000178,2]
[394100045,1763280633497,-168.0,0.00017833,2]
[394100046,1763280633507,-466.80720502,0.00017853,2]
[394100047,1763280633516,-11445.63487344,0.00017854,2]
[394100048,1763280633525,-200.0,0.00017856,2]
[394100049,1763280633535,-169.4,0.0001789,2]
[394100050,1763280633544,-169.4,0.0001789,2]
[394100051,1763280633554,-187.892503,0.000179,2]
[394100052,1763280633567,-806.08929715,0.000179,2]
[394100053,1763280633575,-168.0,0.00017923,2]
[394100054,1763280633585,-504.36442278,0.00017973,2]
[394100055,1763280633594,-501.27954765,0.00017973,2]
[394100056,1763280633603,-323.08070533,0.00017973,2]
[394100057,1763280633612,-500.0,0.00017982,2]
[394100058,1763280633621,-873.78870874,0.0001799,2]
[394100059,1763280633630,-300.0,0.00017999,2]
[394100060,1763280633640,-300.0,0.00017999,2]
[394100061,1763280633649,-207.26383671,0.00017999,2]
[394100062,1763280633661,-219.46254807,0.00017999,2]
[394100063,1763280633671,-500.0,0.00017999,2]
[394100064,1763280633680,-179.37891892,0.00017999,2]
[394100065,1763280633690,-3784.0,0.00018,2]
[394100066,1763280633702,-150.0,0.00018,2]
[394100067,1763280633712,-18100.1291802,0.00018,2]
[394100068,1763280633722,-558.55092128,0.00018,2]
[394100069,1763280633749,-2315.5117397,0.00018,2]
[394100073,1763280638050,-250.0,0.00016394,2]
[394100074,1763280638059,-211.96963833,0.00017543,2]
[394100075,1763280638069,-27.82625342,0.000179,2]
[394100076,1763280638197,-269.16075157,0.000179,2]
[394100077,1763280638208,-111080.27480242,0.00018,2]
[394100078,1763280638251,-8460.0,0.00018,2]
[394100079,1763280638263,-126818.06779307,0.00018,2]
[394100137,1763280640254,-517675.77171625,0.00018,2]
[394100139,1763280640264,-11767.9781145,0.00018,2]
[394100141,1763280640274,-611321.2309522,0.00018,2]
[394100143,1763280640283,-200.0,0.00018,2]
[394100145,1763280640293,-151.0,0.00018,2]
[394100147,1763280640302,-151.0,0.00018,2]
[394100149,1763280640312,-151.0,0.00018,2]
[394100151,1763280640322,-161.211889,0.00018,2]
[394100153,1763280640331,-158.371195,0.00018,2]
[394100155,1763280640340,-153.714524,0.00018,2]
[394100157,1763280640350,-151.0,0.00018,2]
[394100159,1763280640359,-151.0,0.00018,2]
[394100161,1763280640368,-183.398054,0.00018,2]
[394100163,1763280640378,-155.471458,0.00018,2]
[394100165,1763280640387,-150.0,0.00018,2]
[394100167,1763280640396,-156.089534,0.00018,2]
[394100169,1763280640406,-1209.81043934,0.00018,2]
[394100170,1763280640415,-152.793394,0.00018,2]
[394100171,1763280640424,-151.0,0.00018,2]
[394100172,1763280640433,-213.900215,0.00018,2]
[394100173,1763280640445,-213.900215,0.00018,2]
[394100174,1763280640454,-213.900215,0.00018,2]